bitfinex/quotes_SOLUSD_20240615
["timestamp","ask_amount","ask_price","bid_price","bid_amount"]
[1718415140814,2.5752,143.68,143.66,2.5754]
[1718415140972,6.6452,143.68,143.66,7.7264]
[1718415141481,11.7955,143.68,143.66,2.5754]
[1718415142084,9.2203,143.68,143.65,5.1511]
[1718415142299,6.6451,143.68,143.66,7.7263]
[1718415142613,11.7955,143.68,143.66,2.5754]
[1718415142781,2.5753,143.67,143.65,7.7267]
[1718415144596,7.7261,143.67,143.65,2.5755]
[1718415144900,2.5751,143.68,143.66,7.7262]
[1718415145092,19.5201,143.69,143.67,2.5753]
[1718415145298,2.5751,143.68,143.66,25.7547]
[1718415145495,19.5201,143.69,143.67,2.5753]
[1718415145703,2.5751,143.68,143.67,2.5753]
[1718415145884,2.5751,143.68,143.66,7.7263]
[1718415146984,7.7254,143.68,143.66,2.5754]
[1718415147692,7.726,143.67,143.65,2.5755]
[1718415148702,7.726,143.67,143.65,7.7268]
[1718415148902,2.5753,143.67,143.65,7.7268]
[1718415149104,2.5753,143.67,143.65,15.4539]
[1718415149585,2.5753,143.67,143.66,2.5755]
[1718415149787,11.7957,143.68,143.66,2.5755]
[1718415150082,6.6452,143.68,143.66,7.7265]
[1718415150405,6.6452,143.68,143.66,15.4528]
[1718415150587,25.7506,143.69,143.67,2.5753]
[1718415150787,6.6451,143.68,143.67,2.5753]
[1718415151312,6.6451,143.68,143.66,7.7264]
[1718415151706,11.7954,143.68,143.66,2.5754]
[1718415152010,19.5209,143.68,143.66,2.5754]
[1718415153110,2.5753,143.67,143.65,23.1803]
[1718415153279,2.5753,143.67,143.66,2.5755]
[1718415153801,16.3738,143.7,143.6,6.3864]
[1718415153994,11.7968,143.66,143.64,2.5758]
[1718415154507,19.5234,143.66,143.64,2.5758]
[1718415154807,19.5233,143.66,143.64,2.5758]
[1718415155127,2.5757,143.65,143.64,2.5758]
[1718415155318,11.7968,143.66,143.64,2.5758]
[1718415155687,19.5233,143.66,143.64,2.5758]
[1718415156704,6.6458,143.65,143.63,2.5759]
[1718415156897,16.9486,143.65,143.63,2.5759]
[1718415157098,4.07,143.64,143.63,2.5759]
[1718415158316,4.07,143.64,143.63,7.728]
[1718415159320,4.07,143.64,143.63,15.4561]
[1718415159490,6.6458,143.65,143.64,2.5758]
[1718415160204,4.07,143.65,143.64,15.4551]
[1718415160413,6.6456,143.66,143.64,15.4551]
[1718415160911,11.7966,143.66,143.64,7.7275]
[1718415161307,4.07,143.66,143.65,2.5756]
[1718415161509,4.07,143.66,143.65,7.727]
[1718415162192,4.07,143.66,143.65,2.5756]
[1718415162699,6.6455,143.66,143.64,25.758]
[1718415162893,6.6455,143.66,143.65,2.5757]
[1718415163097,6.6455,143.66,143.64,23.1823]
[1718415163304,2.5754,143.67,143.65,5.1513]
[1718415163495,7.7255,143.68,143.66,2.5755]
[1718415163711,26.6731,143.7,143.63,4.07]
[1718415163909,2.5753,143.67,143.65,7.7267]
[1718415164296,7.7259,143.67,143.65,7.7267]
[1718415164498,2.5755,143.66,143.64,25.7577]
[1718415165519,29.8234,143.67,143.65,2.5757]
[1718415166322,11.796,143.67,143.65,2.5757]
[1718415166615,11.796,143.67,143.65,7.727]
[1718415168424,2.5757,143.65,143.63,25.76]
[1718415168716,11.7973,143.65,143.63,2.576]
[1718415169099,6.6458,143.65,143.63,7.7281]
[1718415169510,6.6458,143.65,143.63,15.4562]
[1718415169716,6.6458,143.65,143.63,7.7281]
[1718415171009,2.5758,143.65,143.63,7.7281]
[1718415172516,7.7272,143.65,143.63,2.576]
[1718415173531,2.5758,143.64,143.63,2.576]
[1718415173899,2.5757,143.65,143.63,23.1843]
[1718415174096,15.4543,143.65,143.63,2.576]
[1718415174319,2.5758,143.64,143.63,2.576]
[1718415175216,2.5758,143.64,143.62,25.7616]
[1718415175423,2.5758,143.64,143.62,7.7283]
[1718415176625,7.7275,143.64,143.62,7.7283]
[1718415177224,25.7573,143.65,143.63,2.576]
[1718415177426,6.6456,143.66,143.64,7.7275]
[1718415177635,29.8238,143.67,143.65,2.5757]
[1718415178120,2.5757,143.65,143.63,2.5759]
[1718415178302,7.7271,143.65,143.63,2.5759]
[1718415178499,5.1512,143.66,143.64,2.5758]
[1718415178698,2.5757,143.65,143.63,25.7601]
[1718415178901,2.5757,143.65,143.64,2.5758]
[1718415179316,23.1799,143.66,143.63,25.7601]
[1718415179636,2.5757,143.65,143.63,25.7601]
[1718415180025,7.7261,143.67,143.65,2.5756]
[1718415180227,7.7261,143.67,143.65,7.7269]
[1718415180406,7.7261,143.67,143.65,2.5756]
[1718415180942,15.4521,143.67,143.65,2.5756]
[1718415181531,2.5755,143.66,143.65,2.5756]
[1718415181711,7.7261,143.67,143.65,7.7269]
[1718415182038,11.7958,143.68,143.66,2.5755]
[1718415182331,19.5213,143.68,143.66,2.5755]
[1718415182506,100.0,143.73,143.63,4.07]
[1718415182711,2.5748,143.7,143.66,4.07]
[1718415182918,7.7244,143.7,143.68,2.5751]
[1718415183627,2.5749,143.69,143.68,2.5751]
[1718415183831,12.874,143.7,143.68,2.5751]
[1718415183832,7.7245,143.7,143.68,2.5751]
[1718415184344,2.5749,143.69,143.68,2.5751]
[1718415184502,23.1704,143.72,143.69,12.8747]
[1718415184702,23.1663,143.75,143.72,5.1487]
[1718415185003,7.7222,143.74,143.72,2.5744]
[1718415185618,2.5742,143.73,143.71,25.7448]
[1718415186723,15.4455,143.73,143.71,2.5744]
[1718415186922,7.7229,143.73,143.67,0.17]
[1718415187228,25.7416,143.74,143.72,2.5744]
[1718415187639,2.5743,143.73,143.71,2.5745]
[1718415187822,5.1485,143.73,143.71,2.5745]
[1718415188018,273.4707,143.77,143.69,2.5748]
[1718415188019,7.7238,143.71,143.69,2.5748]
[1718415188227,2.5748,143.7,143.68,7.7251]
[1718415188416,7.7244,143.7,143.68,2.575]
[1718415188612,4.07,143.7,143.69,2.5749]
[1718415188818,6.6447,143.71,143.69,2.5749]
[1718415189022,6.6446,143.71,143.69,7.7246]
[1718415189324,2.5748,143.7,143.68,7.7252]
[1718415189531,6.6447,143.71,143.69,2.5749]
[1718415189727,2.5747,143.71,143.69,2.5749]
[1718415189928,2.5747,143.71,143.69,7.7248]
[1718415190440,2.5747,143.71,143.69,7.7247]
[1718415190847,2.5742,143.73,143.71,7.7235]
[1718415191048,7.7225,143.74,143.72,2.5743]
[1718415191350,25.7412,143.74,143.72,2.5744]
[1718415191554,7.7225,143.74,143.72,2.5744]
[1718415191846,18.0225,143.71,143.67,18.027]
[1718415192019,6.6447,143.71,143.69,2.5749]
[1718415192216,7.7239,143.71,143.69,2.5749]
[1718415192718,11.7939,143.71,143.69,2.5749]
[1718415192930,2.5748,143.7,143.68,25.751]
[1718415193144,7.7245,143.7,143.68,2.5751]
[1718415193720,7.725,143.69,143.67,2.5752]
[1718415193919,6.6452,143.68,143.66,15.4529]
[1718415194141,6.6452,143.68,143.66,7.7264]
[1718415194541,11.7955,143.68,143.66,2.5755]
[1718415195631,6.6452,143.68,143.66,7.7265]
[1718415196127,4.07,143.68,143.67,2.5753]
[1718415197921,4.07,143.69,143.68,2.5751]
[1718415198121,6.6449,143.69,143.67,25.7528]
[1718415198345,11.7948,143.69,143.67,2.5752]
[1718415199556,22.1895,143.73,143.63,2.5759]
[1718415199557,7.7272,143.65,143.63,2.5759]
[1718415199849,6.6458,143.64,143.62,25.7613]
[1718415200165,12.8786,143.65,143.63,2.576]
[1718415200166,19.5244,143.65,143.63,2.576]
[1718415200351,7.7276,143.64,143.62,2.576]
[1718415200651,27.2536,143.64,143.57,15.7523]
[1718415200839,2.576,143.63,143.61,7.7289]
[1718415201242,4.07,143.63,143.58,4.07]
[1718415201555,4.07,143.63,143.61,5.1527]
[1718415201728,4.07,143.63,143.62,2.5762]
[1718415202129,11.7981,143.63,143.61,2.5762]
[1718415202450,18.0316,143.64,143.58,7.7303]
[1718415202451,2.5766,143.6,143.58,7.7303]
[1718415202648,6.6466,143.6,143.58,7.7303]
[1718415203149,4.07,143.6,143.59,2.5767]
[1718415204351,4.07,143.6,143.59,7.7302]
[1718415205029,2.5763,143.62,143.6,2.5764]
[1718415205353,4.07,143.61,143.6,7.7295]
[1718415205649,7.7288,143.62,143.6,2.5764]
[1718415205844,11.7988,143.62,143.6,2.5764]
[1718415206226,2.5764,143.61,143.59,25.7674]
[1718415206428,6.6464,143.61,143.59,7.73]
[1718415206733,11.7992,143.61,143.59,2.5766]
[1718415207125,5.1533,143.6,143.57,23.1935]
[1718415207453,23.1894,143.6,143.54,23.1982]
[1718415207629,4.07,143.58,143.55,10.3099]
[1718415207829,4.07,143.58,143.56,15.4638]
[1718415208156,6.6469,143.58,143.56,15.4636]
[1718415208341,6.6469,143.58,143.56,7.7317]
[1718415208658,2.5771,143.57,143.55,25.7736]
[1718415208860,4.07,143.57,143.55,15.4645]
[1718415209039,4.07,143.57,143.56,2.5773]
[1718415209239,4.07,143.58,143.57,2.5771]
[1718415209458,4.07,143.58,143.57,7.7313]
[1718415209638,2.5769,143.59,143.57,7.7313]
[1718415209844,6.6469,143.59,143.57,7.7313]
[1718415210241,11.8005,143.59,143.57,2.5771]
[1718415210453,6.103,143.62,143.55,5.1548]
[1718415210454,5.154,143.58,143.55,5.1548]
[1718415210772,7.7315,143.57,143.55,2.5774]
[1718415211342,2.5772,143.57,143.55,7.7323]
[1718415212349,25.7702,143.58,143.56,2.5772]
[1718415212963,12.8858,143.57,143.55,2.5773]
[1718415213159,2.5773,143.56,143.54,25.776]
[1718415213364,25.7715,143.57,143.55,2.5774]
[1718415213551,7.7315,143.57,143.55,2.5774]
[1718415213870,2.5772,143.57,143.55,7.7323]
[1718415215671,18.039,143.58,143.55,2.5774]
[1718415215850,15.463,143.57,143.55,2.5774]
[1718415216245,12.8866,143.56,143.54,2.5776]
[1718415216461,12.8866,143.56,143.53,18.0445]
[1718415216462,2.5775,143.55,143.53,18.0445]
[1718415216761,23.1959,143.56,143.53,25.7781]
[1718415216966,42.2485,143.57,143.55,2.5774]
[1718415217466,31.9398,143.57,143.55,2.5774]
[1718415217677,24.2082,143.57,143.55,2.5774]
[1718415217964,24.2082,143.57,143.48,6.359]
[1718415217965,2.5766,143.6,143.58,7.7306]
[1718415218178,21.6281,143.65,143.56,16.4213]
[1718415218346,19.0523,143.65,143.63,7.7278]
[1718415218540,19.0523,143.65,143.63,7.728]
[1718415218872,2.5758,143.64,143.62,7.7283]
[1718415219372,2.576,143.63,143.61,18.0343]
[1718415219673,2.576,143.63,143.61,7.7289]
[1718415219854,7.7287,143.62,143.6,2.5765]
[1718415220970,2.5763,143.62,143.6,7.7297]
[1718415221264,2.5764,143.61,143.59,25.7668]
[1718415221663,2.5764,143.61,143.59,7.73]
[1718415222167,7.7285,143.63,143.61,2.5764]
[1718415222577,5.1523,143.63,143.6,23.189]
[1718415222753,2.5762,143.62,143.6,25.7654]
[1718415223150,23.1862,143.62,143.59,5.1534]
[1718415223355,2.5764,143.61,143.59,7.73]
[1718415223576,7.7292,143.61,143.59,2.5766]
[1718415223872,2.5764,143.61,143.59,7.7301]
[1718415224163,25.7629,143.62,143.6,2.5766]
[1718415224373,2.5764,143.61,143.59,15.4603]
[1718415224567,2.5764,143.61,143.59,7.7301]
[1718415224875,7.7289,143.62,143.6,2.5766]
[1718415225564,15.4576,143.62,143.6,2.5766]
[1718415225772,7.7289,143.62,143.6,2.5766]
[1718415227449,2.5764,143.61,143.59,25.7672]
[1718415227769,2.5764,143.61,143.59,7.7301]
[1718415228654,2.5764,143.61,143.6,2.5766]
[1718415229872,2.5764,143.61,143.59,15.4603]
[1718415230374,2.5764,143.61,143.59,7.7301]
[1718415231073,100.0,143.64,143.54,6.0042]
[1718415231290,7.7299,143.6,143.58,2.5769]
[1718415231655,15.4607,143.59,143.57,2.577]
[1718415231958,2.577,143.58,143.56,7.7317]
[1718415232160,2.577,143.58,143.52,15.7113]
[1718415232161,23.19,143.6,143.57,12.8854]
[1718415232364,2.5768,143.59,143.58,2.5769]
[1718415232569,23.19,143.6,143.58,2.5769]
[1718415232570,25.7667,143.6,143.58,2.5769]
[1718415232959,6.6568,143.59,143.57,25.7707]
[1718415233375,6.6568,143.59,143.57,7.731]
[1718415233765,2.577,143.58,143.56,7.7315]
[1718415233966,11.8109,143.58,143.56,2.5772]
[1718415234988,2.5771,143.57,143.56,2.5772]
[1718415235279,2.5771,143.57,143.55,25.7737]
[1718415235581,25.7696,143.58,143.56,2.5773]
[1718415236358,18.0388,143.58,143.56,2.5773]
[1718415236878,7.731,143.58,143.56,2.5773]
[1718415237085,7.731,143.58,143.56,7.7319]
[1718415237283,23.1918,143.59,143.57,2.5771]
[1718415237464,2.5769,143.58,143.56,25.7727]
[1718415238160,2.5769,143.58,143.57,2.5771]
[1718415238497,2.5769,143.58,143.56,25.7727]
[1718415238666,2.5769,143.58,143.56,7.7317]
[1718415238868,7.7309,143.58,143.56,2.5771]
[1718415240581,25.7667,143.6,143.58,2.5769]
[1718415240961,2.5767,143.59,143.58,2.5769]
[1718415241565,2.5767,143.59,143.57,25.7706]
[1718415241766,2.5767,143.59,143.57,7.7309]
[1718415242072,0.69652435,143.58,143.57,7.7309]
[1718415242696,3.27342435,143.58,143.56,25.7721]
[1718415243088,3.27342435,143.58,143.57,2.5771]
[1718415243271,3.27342435,143.58,143.56,25.7721]
[1718415243595,3.27342435,143.58,143.57,26.1112]
[1718415243596,0.69652435,143.58,143.57,26.1112]
[1718415245235,0.69652435,143.58,143.57,25.7712]
[1718415245881,0.69652435,143.58,143.57,26.1112]
[1718415247489,0.69652435,143.58,143.57,26.2812]
[1718415248492,0.69652435,143.58,143.57,47.3712]
[1718415248686,0.69652435,143.58,143.57,63.088]
[1718415248884,0.69652435,143.58,143.57,83.088]
[1718415253614,7.7272,143.65,143.63,2.576]
[1718415254815,15.4543,143.65,143.62,25.7615]
[1718415255018,2.5758,143.64,143.62,25.7615]
[1718415255223,15.4543,143.65,143.62,25.7615]
[1718415255407,2.5759,143.64,143.62,7.7283]
[1718415255609,116.2721,143.69,143.59,23.1897]
[1718415255610,12.8814,143.62,143.59,23.1897]
[1718415255808,12.8814,143.62,143.6,2.5765]
[1718415255809,15.4577,143.62,143.6,2.5765]
[1718415256014,23.1851,143.63,143.6,5.1531]
[1718415256321,23.1835,143.64,143.61,12.8818]
[1718415256512,7.7279,143.64,143.62,2.5762]
[1718415256928,6.646,143.64,143.62,2.5762]
[1718415257101,6.646,143.64,143.62,7.7286]
[1718415257300,6.646,143.64,143.62,2.5762]
[1718415258931,2.576,143.64,143.62,2.5762]
[1718415259523,2.576,143.64,143.61,23.1873]
[1718415259524,12.8793,143.64,143.61,23.1873]
[1718415259724,12.8793,143.64,143.62,2.5762]
[1718415259725,15.4553,143.64,143.62,2.5762]
[1718415261226,7.7277,143.64,143.62,2.5762]
[1718415262126,0.69628186,143.63,143.6,4.07]
[1718415262629,0.69628186,143.63,143.62,25.7622]
[1718415264805,0.69628186,143.63,143.62,26.2722]
[1718415265115,0.69628186,143.63,143.62,30.5122]
[1718415265425,0.69628186,143.63,143.62,26.4422]
[1718415265807,0.69628186,143.63,143.62,30.5122]
[1718415267512,0.69628186,143.63,143.62,67.1696]
[1718415267932,0.69628186,143.63,143.62,87.1696]
[1718415269043,0.69628186,143.63,143.62,66.2496]
[1718415273238,0.69628186,143.63,143.62,87.1696]
[1718415273841,8.186e-05,143.63,143.62,87.1696]
[1718415275139,23.1676,143.74,143.72,2.5744]
[1718415275315,23.1657,143.75,143.72,5.1487]
[1718415275516,2.5741,143.74,143.72,7.723]
[1718415275716,7.7223,143.74,143.72,2.5743]
[1718415275933,11.7923,143.74,143.72,2.5743]
[1718415276116,11.7923,143.74,143.71,25.7449]
[1718415276117,2.5742,143.73,143.71,25.7449]
[1718415276317,2.5742,143.73,143.71,18.0215]
[1718415276545,6.6442,143.74,143.72,7.7232]
[1718415276749,6.6441,143.74,143.72,7.7232]
[1718415277731,4.07,143.74,143.72,12.8721]
[1718415277927,4.07,143.74,143.72,15.4464]
[1718415278445,6.6441,143.74,143.72,15.4464]
[1718415278655,6.6441,143.74,143.72,7.7231]
[1718415281336,11.7923,143.74,143.72,2.5743]
[1718415281723,6.6441,143.74,143.72,2.5743]
[1718415281926,7.7223,143.74,143.72,2.5743]
[1718415282139,0.69579739,143.73,143.72,2.5743]
[1718415282525,0.69579739,143.73,143.72,2.5744]
[1718415282721,0.69579739,143.73,143.68,4.07]
[1718415282940,0.69579739,143.73,143.71,5.1491]
[1718415283142,4.76579739,143.73,143.72,2.5744]
[1718415283325,4.76579739,143.73,143.71,23.1712]
[1718415283527,8.41869739,143.73,143.71,2.5744]
[1718415283845,6.6444,143.72,143.7,7.7241]
[1718415284229,4.07,143.72,143.7,15.4484]
[1718415284551,4.07,143.72,143.7,23.1728]
[1718415284749,4.07,143.72,143.71,2.5746]
[1718415285250,8.41879739,143.73,143.71,2.5746]
[1718415285453,12.48879739,143.73,143.71,2.5746]
[1718415285632,7.34019739,143.73,143.71,7.7238]
[1718415286529,3.27019739,143.73,143.71,7.7238]
[1718415287445,0.69579739,143.73,143.72,25.7444]
[1718415288655,0.69579739,143.73,143.72,30.1544]
[1718415289033,0.69579739,143.73,143.72,30.4944]
[1718415296945,0.69579739,143.73,143.72,26.4244]
[1718415297152,0.69579739,143.73,143.72,30.4944]
[1718415301655,0.69579739,143.73,143.72,25.9144]
[1718415301958,0.69579739,143.73,143.72,25.7444]
[1718415302331,0.69579739,143.73,143.72,7.7233]
[1718415302538,0.69579739,143.73,143.72,25.7444]
[1718415302938,0.69579739,143.73,143.72,2.5744]
[1718415303546,0.69579739,143.73,143.72,25.7444]
[1718415307247,0.69579739,143.73,143.7,5.1493]
[1718415307442,0.69579739,143.73,143.64,15.772]
[1718415307651,0.69579739,143.73,143.72,15.4466]
[1718415307853,0.69579739,143.73,143.72,25.7444]
[1718415310245,0.69579739,143.73,143.72,29.8144]
[1718415311940,0.69579739,143.73,143.72,30.1544]
[1718415312145,0.69579739,143.73,143.72,50.4944]
[1718415313866,0.69579739,143.73,143.72,50.3244]
[1718415314074,0.69579739,143.73,143.72,25.7444]
[1718415314268,0.69579739,143.73,143.72,29.8144]
[1718415314771,0.69579739,143.73,143.72,25.7444]
[1718415314953,0.69579739,143.73,143.72,29.8144]
[1718415316146,0.69579739,143.73,143.72,25.7444]
[1718415317050,0.69579739,143.73,143.72,7.7233]
[1718415317249,4.76579739,143.73,143.71,2.5746]
[1718415317454,0.69579739,143.73,143.72,2.5744]
[1718415317854,0.69579739,143.73,143.72,15.4466]
[1718415318058,0.69579739,143.73,143.72,25.7444]
[1718415319245,0.69579739,143.73,143.71,2.5744]
[1718415319449,3.27009739,143.73,143.71,2.5744]
[1718415319653,3.27009739,143.73,143.71,7.7236]
[1718415320573,7.34009739,143.73,143.71,2.5744]
[1718415320874,7.34009739,143.73,143.71,7.7236]
[1718415321471,0.69579739,143.73,143.72,25.7444]
[1718415324366,3.27009739,143.73,143.71,7.7236]
[1718415324764,7.34009739,143.73,143.71,7.7236]
[1718415324967,12.48859739,143.73,143.71,2.5745]
[1718415325166,5.1489,143.72,143.65,20.0]
[1718415325386,5.1489,143.72,143.7,2.5747]
[1718415325387,11.7934,143.72,143.7,2.5747]
[1718415325586,6.6445,143.72,143.7,2.5747]
[1718415325788,11.7934,143.72,143.7,2.5747]
[1718415326168,19.5167,143.72,143.69,25.749]
[1718415326369,23.0452,143.72,143.69,23.1742]
[1718415326675,4.07,143.71,143.7,2.5748]
[1718415327077,2.575,143.69,143.67,7.7258]
[1718415327385,4.07,143.68,143.67,7.7257]
[1718415327764,6.6451,143.68,143.66,25.7537]
[1718415328376,4.07,143.68,143.66,25.7537]
[1718415328579,2.575,143.69,143.67,2.5753]
[1718415328798,6.645,143.69,143.67,7.7259]
[1718415330789,4.07,143.68,143.67,7.7259]
[1718415330971,6.6452,143.68,143.66,15.4525]
[1718415331171,6.6452,143.68,143.66,25.7541]
[1718415331480,6.6452,143.68,143.59,15.8996]
[1718415331481,2.5754,143.67,143.59,15.8996]
[1718415331685,6.6454,143.67,143.65,2.5756]
[1718415331991,2.5754,143.67,143.65,2.5756]
[1718415332288,25.7575,143.65,143.63,2.576]
[1718415332500,4.07,143.64,143.63,2.576]
[1718415332671,4.07,143.64,143.63,7.7281]
[1718415333423,25.7606,143.63,143.61,2.5763]
[1718415333695,4.07,143.64,143.58,25.7686]
[1718415333696,2.5766,143.6,143.58,25.7686]
[1718415333991,6.6466,143.6,143.58,25.7686]
[1718415334199,4.07,143.6,143.59,2.5767]
[1718415334501,11.7998,143.6,143.58,2.5768]
[1718415334686,4.07,143.59,143.58,2.5768]
[1718415335280,5.1521,143.63,143.6,2.5765]
[1718415335482,2.5762,143.62,143.6,7.7296]
[1718415335685,2.5765,143.61,143.59,7.73]
[1718415335870,6.6466,143.6,143.58,7.7305]
[1718415336082,7.7298,143.6,143.58,2.5768]
[1718415336290,11.8003,143.59,143.57,2.577]
[1718415336594,4.07,143.58,143.57,2.577]
[1718415337474,4.07,143.59,143.58,2.5769]
[1718415338397,25.7627,143.62,143.6,2.5766]
[1718415338579,11.7988,143.62,143.6,2.5765]
[1718415338969,2.5764,143.61,143.59,25.7673]
[1718415339492,2.5766,143.6,143.58,7.7305]
[1718415340691,2.5767,143.59,143.57,15.4621]
[1718415340892,2.5767,143.59,143.57,7.731]
[1718415341695,2.5767,143.59,143.58,2.5769]
[1718415342091,3.27249739,143.59,143.58,2.5769]
[1718415342484,0.69579739,143.59,143.58,7.7308]
[1718415343200,0.69579739,143.59,143.58,2.5769]
[1718415343771,3.27259739,143.59,143.57,25.7709]
[1718415343977,3.27259739,143.59,143.57,18.0396]
[1718415344591,3.27259739,143.59,143.57,23.1939]
[1718415344901,0.69579739,143.59,143.58,2.5769]
[1718415348597,8.42609739,143.59,143.57,7.7311]
[1718415348976,3.27259739,143.59,143.57,7.7311]
[1718415352377,3.27259739,143.59,143.56,18.0408]
[1718415352378,15.4617,143.58,143.56,2.5771]
[1718415352578,2.5771,143.57,143.56,2.5771]
[1718415352778,2.5771,143.57,143.55,25.7742]
[1718415353078,29.8397,143.58,143.56,2.5773]
[1718415353479,11.8011,143.58,143.56,7.7319]
[1718415353678,18.73369739,143.59,143.57,2.5771]
[1718415353679,20.22689739,143.59,143.57,2.5771]
[1718415353880,12.49629739,143.59,143.57,2.5771]
[1718415354282,20.22659739,143.59,143.57,2.5771]
[1718415355381,0.69579739,143.59,143.58,2.5769]
[1718415355686,0.69579739,143.59,143.58,15.4616]
[1718415355896,0.69579739,143.59,143.58,25.7694]
[1718415356204,0.69579739,143.59,143.58,18.0386]
[1718415356406,0.69579739,143.59,143.58,7.7308]
[1718415356908,0.69579739,143.59,143.58,15.4616]
[1718415357107,0.69579739,143.59,143.58,25.7694]
[1718415359505,0.69579739,143.59,143.58,30.0094]
[1718415359803,0.69579739,143.59,143.58,30.3494]
[1718415360102,0.69579739,143.59,143.58,25.9394]
[1718415360309,0.69579739,143.59,143.58,29.8394]
[1718415360493,0.69579739,143.59,143.58,25.7694]
[1718415361005,0.69579739,143.59,143.58,50.3494]
[1718415362998,0.69579739,143.59,143.58,25.7694]
[1718415364008,0.69579739,143.59,143.58,7.7308]
[1718415364204,0.69579739,143.59,143.58,25.7694]
[1718415365009,0.69579739,143.59,143.58,2.5769]
[1718415365213,0.69579739,143.59,143.58,7.7308]
[1718415365605,0.69579739,143.59,143.58,15.4616]
[1718415366106,0.69579739,143.59,143.58,25.7694]
[1718415366301,0.69579739,143.59,143.58,2.5769]
[1718415366611,4.76579739,143.59,143.58,2.5769]
[1718415366823,4.76579739,143.59,143.57,7.731]
[1718415367010,7.34259739,143.59,143.56,5.1545]
[1718415367211,7.34259739,143.59,143.57,2.5771]
[1718415367405,9.91929739,143.59,143.56,7.7316]
[1718415367609,2.5769,143.58,143.55,25.7741]
[1718415367846,6.6469,143.58,143.55,15.4646]
[1718415368015,6.6469,143.58,143.56,2.5773]
[1718415368207,29.8399,143.58,143.54,12.8881]
[1718415368533,29.8399,143.58,143.55,2.5774]
[1718415368704,19.5321,143.58,143.55,2.5774]
[1718415369156,14.3793,143.56,143.48,15.2285]
[1718415369448,6.6475,143.55,143.52,7.7338]
[1718415369639,4.07,143.55,143.53,2.5778]
[1718415370223,4.07,143.55,143.45,26.49691199]
[1718415370224,2.5779,143.53,143.5,2.5783]
[1718415370422,4.07,143.53,143.51,2.5782]
[1718415370651,11.8036,143.53,143.5,2.5782]
[1718415371428,27.2707,143.53,143.49,23.2064]
[1718415371650,6.6481,143.52,143.49,7.7353]
[1718415372030,4.07,143.52,143.5,7.735]
[1718415372424,6.648,143.52,143.49,25.7847]
[1718415372626,6.648,143.52,143.49,7.7354]
[1718415373529,4.07,143.53,143.5,5.1567]
[1718415373835,6.6479,143.53,143.5,7.7349]
[1718415374232,6.6479,143.53,143.5,15.47]
[1718415374455,4.07,143.53,143.51,2.5781]
[1718415374950,6.6479,143.53,143.5,25.7835]
[1718415375256,6.6482,143.51,143.48,7.736]
[1718415375426,6.6482,143.51,143.49,2.5785]
[1718415376354,4.07,143.51,143.49,2.5785]
[1718415377554,6.6482,143.51,143.48,15.4722]
[1718415377750,15.1868,143.55,143.46,4.07]
[1718415377962,15.1868,143.55,143.51,2.5781]
[1718415377963,7.7333,143.54,143.51,2.5781]
[1718415378252,7.7333,143.54,143.5,10.3133]
[1718415378253,11.8036,143.53,143.5,2.5782]
[1718415378458,11.8035,143.53,143.5,7.7349]
[1718415378664,6.6478,143.53,143.5,12.8918]
[1718415378861,6.6478,143.53,143.5,7.7349]
[1718415380387,11.8035,143.53,143.5,7.7349]
[1718415380533,15.1868,143.55,143.5,7.7349]
[1718415380534,15.1868,143.55,143.5,4.07]
[1718415380741,17.7643,143.55,143.52,7.7338]